[Event "December 12 Early 2023"]
[Site "https://www.chess.com"]
[Date "2023.12.12"]
[Round "3"]
[White "Bocharov, Dmitry"]
[Black "Iskusnyh, Sergei"]
[Result "1-0"]
[Board "37"]
[TimeControl "180+1"]
[WhiteFideId "4138716"]
[BlackFideId "4120027"]
[WhiteElo "2856"]
[BlackElo "2584"]
[WhiteTeam "RUS"]
[BlackTeam "RUS"]
[WhiteClock "0:00:12"]
[BlackClock "0:00:00"]

1. c4 {[%clk 0:03:00]}  c5 {[%clk 0:02:54]} 2. g3 {[%clk 0:02:59]}  g6 {[%clk 0:02:54]} 3. Bg2 {[%clk 0:02:59]}  Bg7 {[%clk 0:02:54]} 4. Nc3 {[%clk 0:03:00]}  Nc6 {[%clk 0:02:55]} 5. Nf3 {[%clk 0:03:00]}  d6 {[%clk 0:02:55]} 6. O-O {[%clk 0:02:58]}  e6 {[%clk 0:02:54]} 7. e3 {[%clk 0:02:57]}  Nge7 {[%clk 0:02:54]} 8. d4 {[%clk 0:02:58]}  O-O {[%clk 0:02:54]} 9. Re1 {[%clk 0:02:55]}  e5 {[%clk 0:02:52]} 10. dxc5 {[%clk 0:02:34]}  dxc5 {[%clk 0:02:52]} 11. Qb3 {[%clk 0:02:33]}  Na5 {[%clk 0:02:32]} 12. Qc2 {[%clk 0:02:31]}  Nxc4 {[%clk 0:02:14]} 13. Ne4 {[%clk 0:02:29]}  Na5 {[%clk 0:01:59]} 14. Rd1 {[%clk 0:02:27]}  Qc7 {[%clk 0:01:56]} 15. Qxc5 {[%clk 0:02:27]}  Qxc5 {[%clk 0:01:51]} 16. Nxc5 {[%clk 0:02:28]}  Bf5 {[%clk 0:01:48]} 17. Bd2 {[%clk 0:02:27]}  Nc4 {[%clk 0:01:43]} 18. Bc3 {[%clk 0:02:26]}  b6 {[%clk 0:01:08]} 19. Nd7 {[%clk 0:02:23]}  Bxd7 {[%clk 0:01:00]} 20. Rxd7 {[%clk 0:02:24]}  Nf5 {[%clk 0:00:58]} 21. Nd2 {[%clk 0:02:05]}  Rac8 {[%clk 0:00:54]} 22. Nxc4 {[%clk 0:02:05]}  Rxc4 {[%clk 0:00:54]} 23. Bd5 {[%clk 0:02:04]}  Rcc8 {[%clk 0:00:43]} 24. Rxa7 {[%clk 0:02:04]}  e4 {[%clk 0:00:34]} 25. Bxg7 {[%clk 0:01:40]}  Kxg7 {[%clk 0:00:31]} 26. Bxe4 {[%clk 0:01:39]}  Nd6 {[%clk 0:00:27]} 27. Bd3 {[%clk 0:01:38]}  Rfd8 {[%clk 0:00:25]} 28. b3 {[%clk 0:01:25]}  Rc3 {[%clk 0:00:23]} 29. Bf1 {[%clk 0:01:24]}  Ne4 {[%clk 0:00:22]} 30. Bc4 {[%clk 0:01:22]}  Ng5 {[%clk 0:00:15]} 31. h4 {[%clk 0:01:19]}  Nf3+ {[%clk 0:00:15]} 32. Kg2 {[%clk 0:01:11]}  Ne5 {[%clk 0:00:16]} 33. Rb7 {[%clk 0:00:56]}  Rd2 {[%clk 0:00:15]} 34. Rf1 {[%clk 0:00:34]}  Nxc4 {[%clk 0:00:13]} 35. bxc4 {[%clk 0:00:33]}  Rxa2 {[%clk 0:00:12]} 36. Rxb6 {[%clk 0:00:31]}  Rxc4 {[%clk 0:00:12]} 37. Rd6 {[%clk 0:00:27]}  h5 {[%clk 0:00:11]} 38. Kf3 {[%clk 0:00:27]}  Rcc2 {[%clk 0:00:11]} 39. Rd4 {[%clk 0:00:26]}  Rab2 {[%clk 0:00:11]} 40. Rf4 {[%clk 0:00:26]}  Ra2 {[%clk 0:00:11]} 41. Rd1 {[%clk 0:00:25]}  Rc7 {[%clk 0:00:11]} 42. Rd6 {[%clk 0:00:22]}  Re7 {[%clk 0:00:11]} 43. Rfd4 {[%clk 0:00:22]}  Rc7 {[%clk 0:00:09]} 44. Rf4 {[%clk 0:00:17]}  Re7 {[%clk 0:00:09]} 45. Kg2 {[%clk 0:00:17]}  Rc7 {[%clk 0:00:08]} 46. Rd3 {[%clk 0:00:17]}  Re7 {[%clk 0:00:08]} 47. Rfd4 {[%clk 0:00:17]}  Rb2 {[%clk 0:00:08]} 48. Rd2 {[%clk 0:00:17]}  Rxd2 {[%clk 0:00:07]} 49. Rxd2 {[%clk 0:00:17]}  Re6 {[%clk 0:00:08]} 50. Kf3 {[%clk 0:00:18]}  Ra6 {[%clk 0:00:08]} 51. e4 {[%clk 0:00:18]}  Ra5 {[%clk 0:00:08]} 52. Kf4 {[%clk 0:00:19]}  Rb5 {[%clk 0:00:08]} 53. Rd7 {[%clk 0:00:19]}  Kf8 {[%clk 0:00:07]} 54. e5 {[%clk 0:00:19]}  Rb2 {[%clk 0:00:07]} 55. f3 {[%clk 0:00:19]}  Rb5 {[%clk 0:00:07]} 56. Rc7 {[%clk 0:00:18]}  Ra5 {[%clk 0:00:07]} 57. Rd7 {[%clk 0:00:17]}  Kg8 {[%clk 0:00:07]} 58. Ke4 {[%clk 0:00:18]}  Ra4+ {[%clk 0:00:06]} 59. Rd4 {[%clk 0:00:17]}  Ra5 {[%clk 0:00:06]} 60. Kf4 {[%clk 0:00:18]}  Rb5 {[%clk 0:00:06]} 61. Re4 {[%clk 0:00:17]}  Ra5 {[%clk 0:00:05]} 62. g4 {[%clk 0:00:16]}  hxg4 {[%clk 0:00:05]} 63. Kxg4 {[%clk 0:00:17]}  Kg7 {[%clk 0:00:06]} 64. Kf4 {[%clk 0:00:16]}  Rb5 {[%clk 0:00:06]} 65. Rc4 {[%clk 0:00:16]}  Ra5 {[%clk 0:00:06]} 66. Rc7 {[%clk 0:00:16]}  Kf8 {[%clk 0:00:03]} 67. Rd7 {[%clk 0:00:17]}  Rb5 {[%clk 0:00:03]} 68. Ra7 {[%clk 0:00:15]}  Rc5 {[%clk 0:00:03]} 69. Ra4 {[%clk 0:00:15]}  Rb5 {[%clk 0:00:03]} 70. Re4 {[%clk 0:00:15]}  Kg7 {[%clk 0:00:03]} 71. Kg4 {[%clk 0:00:14]}  Ra5 {[%clk 0:00:03]} 72. Re3 {[%clk 0:00:11]}  Rb5 {[%clk 0:00:02]} 73. f4 {[%clk 0:00:12]}  Rb1 {[%clk 0:00:02]} 74. Rg3 {[%clk 0:00:10]}  Rc1 {[%clk 0:00:02]} 75. Kg5 {[%clk 0:00:10]}  Rc5 {[%clk 0:00:02]} 76. h5 {[%clk 0:00:10]}  f6+ {[%clk 0:00:02]} 77. Kh4 {[%clk 0:00:11]}  fxe5 {[%clk 0:00:02]} 78. Rxg6+ {[%clk 0:00:11]}  Kf7 {[%clk 0:00:02]} 79. f5 {[%clk 0:00:12]}  Rc1 {[%clk 0:00:02]} 80. Re6 {[%clk 0:00:11]}  Rh1+ {[%clk 0:00:01]} 81. Kg5 {[%clk 0:00:12]}  Rg1+ {[%clk 0:00:00]} 82. Kh6 {[%clk 0:00:12]} 1-0

[Event "December 12 Early 2023"]
[Site "https://www.chess.com"]
[Date "2023.12.12"]
[Round "3"]
[White "Kozusek, Daniel"]
[Black "Bacrot, Etienne"]
[Result "0-1"]
[Board "38"]
[TimeControl "180+1"]
[WhiteFideId "349500"]
[BlackFideId "605506"]
[WhiteElo "2579"]
[BlackElo "2847"]
[WhiteTeam "WLS"]
[BlackTeam "FRA"]
[WhiteClock "0:00:04"]
[BlackClock "0:00:04"]

1. d4 {[%clk 0:02:58]}  d5 {[%clk 0:02:59]} 2. c4 {[%clk 0:02:58]}  dxc4 {[%clk 0:02:59]} 3. e4 {[%clk 0:02:55]}  b5 {[%clk 0:02:59]} 4. a4 {[%clk 0:02:49]}  c6 {[%clk 0:03:00]} 5. axb5 {[%clk 0:02:50]}  cxb5 {[%clk 0:03:00]} 6. Nc3 {[%clk 0:02:49]}  a6 {[%clk 0:03:00]} 7. Nxb5 {[%clk 0:02:48]}  axb5 {[%clk 0:03:01]} 8. Rxa8 {[%clk 0:02:46]}  Bb7 {[%clk 0:03:01]} 9. Ra1 {[%clk 0:02:42]}  Bxe4 {[%clk 0:03:00]} 10. Nf3 {[%clk 0:02:43]}  e6 {[%clk 0:02:55]} 11. Be2 {[%clk 0:02:43]}  Nf6 {[%clk 0:02:46]} 12. O-O {[%clk 0:02:42]}  Be7 {[%clk 0:02:47]} 13. Be3 {[%clk 0:02:33]}  O-O {[%clk 0:02:46]} 14. Nd2 {[%clk 0:02:33]}  Bg6 {[%clk 0:02:30]} 15. Bf3 {[%clk 0:02:18]}  Nd5 {[%clk 0:02:25]} 16. Ne4 {[%clk 0:02:16]}  Nc6 {[%clk 0:02:12]} 17. Nc3 {[%clk 0:02:15]}  Ncb4 {[%clk 0:02:08]} 18. Nxb5 {[%clk 0:01:55]}  Nc2 {[%clk 0:01:17]} 19. Bxd5 {[%clk 0:01:45]}  Qxd5 {[%clk 0:01:15]} 20. Nc3 {[%clk 0:01:40]}  Qb7 {[%clk 0:01:15]} 21. Ra2 {[%clk 0:01:35]}  Bd3 {[%clk 0:01:10]} 22. Qf3 {[%clk 0:01:13]}  Qxf3 {[%clk 0:00:57]} 23. gxf3 {[%clk 0:01:14]}  Bxf1 {[%clk 0:00:56]} 24. Kxf1 {[%clk 0:01:15]}  Bf6 {[%clk 0:00:50]} 25. Ne2 {[%clk 0:00:42]}  h6 {[%clk 0:00:28]} 26. Ra4 {[%clk 0:00:35]}  Rc8 {[%clk 0:00:28]} 27. Kg2 {[%clk 0:00:30]}  Ne1+ {[%clk 0:00:24]} 28. Kg3 {[%clk 0:00:29]}  Nd3 {[%clk 0:00:23]} 29. Ra2 {[%clk 0:00:15]}  Rb8 {[%clk 0:00:23]} 30. Ra4 {[%clk 0:00:10]}  Nxb2 {[%clk 0:00:22]} 31. Ra7 {[%clk 0:00:10]}  Rc8 {[%clk 0:00:22]} 32. Nc3 {[%clk 0:00:10]}  Nd3 {[%clk 0:00:21]} 33. Ra4 {[%clk 0:00:10]}  Ne1 {[%clk 0:00:16]} 34. f4 {[%clk 0:00:08]}  Nc2 {[%clk 0:00:16]} 35. Kf3 {[%clk 0:00:06]}  Nxd4+ {[%clk 0:00:15]} 36. Ke4 {[%clk 0:00:07]}  Nf5 {[%clk 0:00:12]} 37. Ne2 {[%clk 0:00:07]}  c3 {[%clk 0:00:12]} 38. Nc1 {[%clk 0:00:08]}  Rd8 {[%clk 0:00:09]} 39. Ra2 {[%clk 0:00:05]}  Nxe3 {[%clk 0:00:06]} 40. fxe3 {[%clk 0:00:05]}  Rd2 {[%clk 0:00:06]} 41. Ra8+ {[%clk 0:00:04]}  Kh7 {[%clk 0:00:06]} 42. Rc8 {[%clk 0:00:04]}  Rxh2 {[%clk 0:00:06]} 43. Kd3 {[%clk 0:00:04]}  Rd2+ {[%clk 0:00:06]} 44. Ke4 {[%clk 0:00:04]}  h5 {[%clk 0:00:06]} 45. Nb3 {[%clk 0:00:04]}  Rd1 {[%clk 0:00:05]} 46. Na5 {[%clk 0:00:04]}  h4 {[%clk 0:00:05]} 47. Nb7 {[%clk 0:00:04]}  h3 {[%clk 0:00:04]} 48. Nd6 {[%clk 0:00:04]}  Kg6 {[%clk 0:00:04]} 49. Nxf7 {[%clk 0:00:04]}  Kxf7 {[%clk 0:00:04]} 0-1

[Event "December 12 Early 2023"]
[Site "https://www.chess.com"]
[Date "2023.12.12"]
[Round "3"]
[White "Kunin, Vitaly"]
[Black "Vakhlamov, Igor L."]
[Result "0-1"]
[Board "39"]
[TimeControl "180+1"]
[WhiteFideId "4128737"]
[BlackFideId "24126748"]
[WhiteElo "2577"]
[BlackElo "2840"]
[WhiteTeam "GER"]
[BlackTeam "RUS"]
[WhiteClock "0:00:00"]
[BlackClock "0:00:05"]

1. d4 {[%clk 0:03:00]}  d5 {[%clk 0:02:41]} 2. c4 {[%clk 0:02:59]}  e6 {[%clk 0:02:41]} 3. Nc3 {[%clk 0:02:59]}  c5 {[%clk 0:02:39]} 4. cxd5 {[%clk 0:02:59]}  cxd4 {[%clk 0:02:40]} 5. Qa4+ {[%clk 0:02:56]}  Bd7 {[%clk 0:02:40]} 6. Qxd4 {[%clk 0:02:56]}  exd5 {[%clk 0:02:41]} 7. Nf3 {[%clk 0:02:42]}  Nf6 {[%clk 0:02:40]} 8. Bg5 {[%clk 0:02:38]}  Be7 {[%clk 0:02:41]} 9. e3 {[%clk 0:02:37]}  Nc6 {[%clk 0:02:40]} 10. Qd3 {[%clk 0:02:33]}  Be6 {[%clk 0:02:38]} 11. Be2 {[%clk 0:02:32]}  h6 {[%clk 0:02:38]} 12. Bh4 {[%clk 0:02:30]}  O-O {[%clk 0:02:38]} 13. O-O {[%clk 0:02:30]}  Qb6 {[%clk 0:02:38]} 14. Qb5 {[%clk 0:02:22]}  g5 {[%clk 0:02:26]} 15. Bg3 {[%clk 0:02:19]}  Ne4 {[%clk 0:02:27]} 16. Nxd5 {[%clk 0:02:00]}  Qxb5 {[%clk 0:01:53]} 17. Nxe7+ {[%clk 0:01:59]}  Nxe7 {[%clk 0:01:54]} 18. Bxb5 {[%clk 0:02:00]}  Nf5 {[%clk 0:01:35]} 19. Rfd1 {[%clk 0:01:50]}  Rfd8 {[%clk 0:01:34]} 20. Be5 {[%clk 0:01:05]}  Rxd1+ {[%clk 0:01:17]} 21. Rxd1 {[%clk 0:01:04]}  Bxa2 {[%clk 0:01:17]} 22. Rd7 {[%clk 0:00:58]}  Nc5 {[%clk 0:01:06]} 23. Rc7 {[%clk 0:00:54]}  b6 {[%clk 0:01:00]} 24. g4 {[%clk 0:00:51]}  Ng7 {[%clk 0:00:57]} 25. Bc6 {[%clk 0:00:47]}  Rd8 {[%clk 0:00:53]} 26. Rxa7 {[%clk 0:00:46]}  Be6 {[%clk 0:00:44]} 27. h3 {[%clk 0:00:40]}  Rc8 {[%clk 0:00:22]} 28. Nd4 {[%clk 0:00:37]}  Bc4 {[%clk 0:00:19]} 29. Bf3 {[%clk 0:00:21]}  Nd3 {[%clk 0:00:19]} 30. Bxg7 {[%clk 0:00:20]}  Kxg7 {[%clk 0:00:20]} 31. Nf5+ {[%clk 0:00:19]}  Kf6 {[%clk 0:00:17]} 32. Rb7 {[%clk 0:00:15]}  b5 {[%clk 0:00:15]} 33. Rb6+ {[%clk 0:00:13]}  Ke5 {[%clk 0:00:14]} 34. Nxh6 {[%clk 0:00:10]}  Nxb2 {[%clk 0:00:12]} 35. Rb7 {[%clk 0:00:07]}  Kf6 {[%clk 0:00:06]} 36. Rb6+ {[%clk 0:00:05]}  Kg7 {[%clk 0:00:02]} 37. Nf5+ {[%clk 0:00:04]}  Kf8 {[%clk 0:00:03]} 38. Rh6 {[%clk 0:00:04]}  Ke8 {[%clk 0:00:03]} 39. Nd6+ {[%clk 0:00:03]}  Kd7 {[%clk 0:00:04]} 40. Nxc8 {[%clk 0:00:03]}  Kxc8 {[%clk 0:00:04]} 41. Rb6 {[%clk 0:00:02]}  Kc7 {[%clk 0:00:04]} 42. Rc6+ {[%clk 0:00:02]}  Kd7 {[%clk 0:00:05]} 43. Rf6 {[%clk 0:00:03]}  Nd3 {[%clk 0:00:05]} 44. Bc6+ {[%clk 0:00:03]}  Ke7 {[%clk 0:00:05]} 45. Be4 {[%clk 0:00:04]}  Nc5 {[%clk 0:00:04]} 46. Rf5 {[%clk 0:00:03]}  Kd6 {[%clk 0:00:02]} 47. Bf3 {[%clk 0:00:03]}  b4 {[%clk 0:00:03]} 48. Rf6+ {[%clk 0:00:02]}  Be6 {[%clk 0:00:03]} 49. Rh6 {[%clk 0:00:02]}  b3 {[%clk 0:00:03]} 50. Bd1 {[%clk 0:00:02]}  b2 {[%clk 0:00:02]} 51. Bc2 {[%clk 0:00:02]}  Kc7 {[%clk 0:00:03]} 52. Rh8 {[%clk 0:00:02]}  Bd5 {[%clk 0:00:03]} 53. Rh7 {[%clk 0:00:01]}  Be4 {[%clk 0:00:02]} 54. Bxe4 {[%clk 0:00:01]}  Nxe4 {[%clk 0:00:02]} 55. Rxf7+ {[%clk 0:00:02]}  Kc6 {[%clk 0:00:02]} 56. Kg2 {[%clk 0:00:02]}  b1=Q {[%clk 0:00:03]} 57. Rf5 {[%clk 0:00:02]}  Qc2 {[%clk 0:00:03]} 58. h4 {[%clk 0:00:02]}  Qe2 {[%clk 0:00:04]} 59. Re5 {[%clk 0:00:01]}  Qxg4+ {[%clk 0:00:03]} 60. Kf1 {[%clk 0:00:01]}  Qd1+ {[%clk 0:00:03]} 61. Kg2 {[%clk 0:00:02]}  Qg4+ {[%clk 0:00:04]} 62. Kf1 {[%clk 0:00:02]}  Qf3 {[%clk 0:00:05]} 63. Re6+ {[%clk 0:00:00]}  Kd7 {[%clk 0:00:05]} 0-1

[Event "December 12 Early 2023"]
[Site "https://www.chess.com"]
[Date "2023.12.12"]
[Round "3"]
[White "Materia, Marco"]
[Black "Belov, Alexei"]
[Result "0-1"]
[Board "40"]
[TimeControl "180+1"]
[WhiteFideId "45150451"]
[BlackFideId "4128206"]
[WhiteElo "2839"]
[BlackElo "2574"]
[WhiteTeam "FRA"]
[BlackTeam "RUS"]
[WhiteClock "0:00:23"]
[BlackClock "0:00:39"]

1. Nf3 {[%clk 0:03:00]}  d5 {[%clk 0:02:59]} 2. e3 {[%clk 0:03:00]}  Nf6 {[%clk 0:02:59]} 3. c4 {[%clk 0:03:00]}  e6 {[%clk 0:02:59]} 4. Nc3 {[%clk 0:02:59]}  Be7 {[%clk 0:02:59]} 5. b3 {[%clk 0:02:59]}  O-O {[%clk 0:02:59]} 6. Bb2 {[%clk 0:02:59]}  c5 {[%clk 0:02:59]} 7. cxd5 {[%clk 0:02:59]}  exd5 {[%clk 0:02:59]} 8. d4 {[%clk 0:02:59]}  Nc6 {[%clk 0:02:59]} 9. Be2 {[%clk 0:02:58]}  cxd4 {[%clk 0:02:59]} 10. Nxd4 {[%clk 0:02:59]}  Bc5 {[%clk 0:02:59]} 11. Nxc6 {[%clk 0:02:54]}  bxc6 {[%clk 0:03:00]} 12. O-O {[%clk 0:02:54]}  Bd6 {[%clk 0:03:00]} 13. Rc1 {[%clk 0:02:53]}  Bd7 {[%clk 0:03:00]} 14. Na4 {[%clk 0:02:52]}  Ne4 {[%clk 0:03:00]} 15. Bf3 {[%clk 0:02:45]}  Re8 {[%clk 0:02:58]} 16. Bxe4 {[%clk 0:02:44]}  Qh4 {[%clk 0:02:58]} 17. Bxh7+ {[%clk 0:02:28]}  Qxh7 {[%clk 0:02:55]} 18. g3 {[%clk 0:02:28]}  Qe4 {[%clk 0:02:15]} 19. Qd4 {[%clk 0:02:22]}  Qg6 {[%clk 0:02:10]} 20. Nc5 {[%clk 0:02:16]}  Bh3 {[%clk 0:02:01]} 21. Rfe1 {[%clk 0:02:04]}  Be5 {[%clk 0:01:58]} 22. Qd2 {[%clk 0:02:03]}  Qf6 {[%clk 0:01:56]} 23. f4 {[%clk 0:01:36]}  Bxb2 {[%clk 0:01:55]} 24. Rc2 {[%clk 0:01:36]}  Ba3 {[%clk 0:01:46]} 25. Qa5 {[%clk 0:01:27]}  Bf5 {[%clk 0:01:33]} 26. Rg2 {[%clk 0:01:03]}  Bxc5 {[%clk 0:01:23]} 27. Qxc5 {[%clk 0:01:02]}  Be4 {[%clk 0:01:18]} 28. Rd2 {[%clk 0:01:01]}  a5 {[%clk 0:01:16]} 29. Rc1 {[%clk 0:00:56]}  Re6 {[%clk 0:01:11]} 30. Qd4 {[%clk 0:00:47]}  Qe7 {[%clk 0:01:01]} 31. Qc5 {[%clk 0:00:45]}  Qxc5 {[%clk 0:00:56]} 32. Rxc5 {[%clk 0:00:45]}  a4 {[%clk 0:00:56]} 33. b4 {[%clk 0:00:42]}  a3 {[%clk 0:00:56]} 34. b5 {[%clk 0:00:39]}  cxb5 {[%clk 0:00:56]} 35. Rxb5 {[%clk 0:00:40]}  Rc6 {[%clk 0:00:56]} 36. Kf2 {[%clk 0:00:38]}  Rc2 {[%clk 0:00:51]} 37. Rxd5 {[%clk 0:00:36]}  Bxd5 {[%clk 0:00:45]} 38. Rxc2 {[%clk 0:00:36]}  Rb8 {[%clk 0:00:45]} 39. e4 {[%clk 0:00:30]}  Rb2 {[%clk 0:00:42]} 40. Re2 {[%clk 0:00:23]}  Bxa2 {[%clk 0:00:39]} 0-1

[Event "December 12 Early 2023"]
[Site "https://www.chess.com"]
[Date "2023.12.12"]
[Round "3"]
[White "Klymchuk, Andriy"]
[Black "Postlmayer, Jakob"]
[Result "1-0"]
[Board "41"]
[TimeControl "180+1"]
[WhiteFideId "14140063"]
[BlackFideId "1643622"]
[WhiteElo "2828"]
[BlackElo "2573"]
[WhiteTeam "UKR"]
[BlackTeam "AUT"]
[WhiteClock "0:01:32"]
[BlackClock "0:00:38"]

1. e4 {[%clk 0:03:00]}  c6 {[%clk 0:02:58]} 2. d4 {[%clk 0:03:00]}  d5 {[%clk 0:02:50]} 3. e5 {[%clk 0:03:00]}  Bf5 {[%clk 0:02:40]} 4. Nc3 {[%clk 0:03:00]}  e6 {[%clk 0:02:36]} 5. g4 {[%clk 0:03:00]}  Bg6 {[%clk 0:02:35]} 6. Nge2 {[%clk 0:03:00]}  f6 {[%clk 0:02:31]} 7. Nf4 {[%clk 0:02:59]}  Bf7 {[%clk 0:02:31]} 8. Nd3 {[%clk 0:02:58]}  Nd7 {[%clk 0:02:27]} 9. Bf4 {[%clk 0:02:56]}  Ne7 {[%clk 0:02:17]} 10. Qe2 {[%clk 0:02:53]}  Ng6 {[%clk 0:02:16]} 11. Bg3 {[%clk 0:02:54]}  fxe5 {[%clk 0:02:15]} 12. dxe5 {[%clk 0:02:53]}  c5 {[%clk 0:02:11]} 13. Nxd5 {[%clk 0:02:45]}  exd5 {[%clk 0:02:08]} 14. e6 {[%clk 0:02:45]}  Bxe6 {[%clk 0:02:05]} 15. Qxe6+ {[%clk 0:02:44]}  Qe7 {[%clk 0:02:05]} 16. Qxe7+ {[%clk 0:02:42]}  Bxe7 {[%clk 0:02:06]} 17. Bg2 {[%clk 0:02:41]}  Nb6 {[%clk 0:02:02]} 18. O-O-O {[%clk 0:02:35]}  O-O-O {[%clk 0:02:02]} 19. Rhe1 {[%clk 0:02:32]}  Bd6 {[%clk 0:01:58]} 20. f4 {[%clk 0:02:27]}  c4 {[%clk 0:01:48]} 21. Ne5 {[%clk 0:02:27]}  Bxe5 {[%clk 0:01:46]} 22. fxe5 {[%clk 0:02:28]}  Rhe8 {[%clk 0:01:46]} 23. e6 {[%clk 0:02:15]}  Re7 {[%clk 0:01:42]} 24. g5 {[%clk 0:02:13]}  Nf8 {[%clk 0:01:35]} 25. Re5 {[%clk 0:02:06]}  Nxe6 {[%clk 0:01:30]} 26. Rde1 {[%clk 0:02:04]}  Rde8 {[%clk 0:01:30]} 27. Bh3 {[%clk 0:02:00]}  Kd7 {[%clk 0:01:29]} 28. a4 {[%clk 0:01:49]}  a5 {[%clk 0:01:25]} 29. Bf2 {[%clk 0:01:47]}  Nxa4 {[%clk 0:01:16]} 30. Rxd5+ {[%clk 0:01:47]}  Kc7 {[%clk 0:01:16]} 31. Rde5 {[%clk 0:01:46]}  Kd7 {[%clk 0:01:04]} 32. Rxa5 {[%clk 0:01:44]}  Rf7 {[%clk 0:00:48]} 33. Bg3 {[%clk 0:01:41]}  Nb6 {[%clk 0:00:46]} 34. Rb5 {[%clk 0:01:36]}  Kc6 {[%clk 0:00:45]} 35. Rbe5 {[%clk 0:01:34]}  Nxg5 {[%clk 0:00:38]} 36. Bg2+ {[%clk 0:01:32]} 1-0

[Event "December 12 Early 2023"]
[Site "https://www.chess.com"]
[Date "2023.12.12"]
[Round "3"]
[White "Asish Panda"]
[Black "Miladinovic, Igor"]
[Result "0-1"]
[Board "42"]
[TimeControl "180+1"]
[WhiteFideId "45012458"]
[BlackFideId "4203380"]
[WhiteElo "2550"]
[BlackElo "2821"]
[WhiteTeam "IND"]
[BlackTeam "SRB"]
[WhiteClock "0:00:02"]
[BlackClock "0:00:34"]

1. e4 {[%clk 0:03:00]}  c5 {[%clk 0:02:58]} 2. Nf3 {[%clk 0:03:00]}  Nc6 {[%clk 0:02:58]} 3. Bb5 {[%clk 0:03:00]}  e6 {[%clk 0:02:59]} 4. O-O {[%clk 0:03:00]}  Nge7 {[%clk 0:02:59]} 5. c3 {[%clk 0:03:00]}  a6 {[%clk 0:02:59]} 6. Ba4 {[%clk 0:03:00]}  b5 {[%clk 0:02:59]} 7. Bc2 {[%clk 0:03:01]}  Bb7 {[%clk 0:03:00]} 8. d4 {[%clk 0:03:00]}  cxd4 {[%clk 0:03:01]} 9. cxd4 {[%clk 0:03:00]}  Rc8 {[%clk 0:03:01]} 10. a3 {[%clk 0:02:56]}  Ng6 {[%clk 0:03:01]} 11. Nc3 {[%clk 0:02:50]}  Na5 {[%clk 0:03:00]} 12. Re1 {[%clk 0:02:41]}  Be7 {[%clk 0:02:54]} 13. g3 {[%clk 0:02:36]}  O-O {[%clk 0:02:39]} 14. h4 {[%clk 0:02:34]}  f6 {[%clk 0:02:39]} 15. h5 {[%clk 0:02:32]}  Nh8 {[%clk 0:02:39]} 16. Nh4 {[%clk 0:02:17]}  Nf7 {[%clk 0:02:35]} 17. Qg4 {[%clk 0:02:13]}  Nc4 {[%clk 0:02:26]} 18. e5 {[%clk 0:01:53]}  f5 {[%clk 0:01:55]} 19. Nxf5 {[%clk 0:01:17]}  exf5 {[%clk 0:01:47]} 20. Qxf5 {[%clk 0:01:17]}  Ng5 {[%clk 0:01:46]} 21. Qd3 {[%clk 0:00:46]}  Nf3+ {[%clk 0:01:24]} 22. Kf1 {[%clk 0:00:39]}  g6 {[%clk 0:01:20]} 23. hxg6 {[%clk 0:00:27]}  Kg7 {[%clk 0:01:17]} 24. gxh7 {[%clk 0:00:20]}  Kh8 {[%clk 0:01:16]} 25. Bh6 {[%clk 0:00:14]}  Qb6 {[%clk 0:01:03]} 26. Bxf8 {[%clk 0:00:06]}  Rxf8 {[%clk 0:01:01]} 27. Qg6 {[%clk 0:00:06]}  Nfd2+ {[%clk 0:00:39]} 28. Kg1 {[%clk 0:00:05]}  Qxd4 {[%clk 0:00:37]} 29. Re2 {[%clk 0:00:05]}  Nf3+ {[%clk 0:00:36]} 30. Kf1 {[%clk 0:00:05]}  Ncd2+ {[%clk 0:00:35]} 31. Kg2 {[%clk 0:00:04]}  Nxe5+ {[%clk 0:00:35]} 32. Kh2 {[%clk 0:00:04]}  Nxg6 {[%clk 0:00:35]} 33. Bxg6 {[%clk 0:00:02]}  Rxf2+ {[%clk 0:00:34]} 0-1

[Event "December 12 Early 2023"]
[Site "https://www.chess.com"]
[Date "2023.12.12"]
[Round "3"]
[White "Kushagra Mohan"]
[Black "Zimmermann, Ulrich"]
[Result "0-1"]
[Board "43"]
[TimeControl "180+1"]
[WhiteFideId "25033638"]
[BlackFideId "24654523"]
[WhiteElo "2815"]
[BlackElo "2537"]
[WhiteTeam "IND"]
[BlackTeam "GER"]
[WhiteClock "0:01:30"]
[BlackClock "0:01:39"]

1. e4 {[%clk 0:02:58]}  e6 {[%clk 0:02:59]} 2. d4 {[%clk 0:02:58]}  d5 {[%clk 0:03:00]} 3. Nd2 {[%clk 0:02:58]}  c5 {[%clk 0:02:59]} 4. exd5 {[%clk 0:02:59]}  Qxd5 {[%clk 0:03:00]} 5. Ngf3 {[%clk 0:02:59]}  cxd4 {[%clk 0:03:00]} 6. Bc4 {[%clk 0:03:00]}  Qd6 {[%clk 0:03:00]} 7. O-O {[%clk 0:03:00]}  Nf6 {[%clk 0:03:01]} 8. Nb3 {[%clk 0:03:00]}  Nc6 {[%clk 0:03:01]} 9. Nbxd4 {[%clk 0:02:59]}  Nxd4 {[%clk 0:03:02]} 10. Nxd4 {[%clk 0:03:00]}  a6 {[%clk 0:03:02]} 11. Re1 {[%clk 0:03:00]}  Bd7 {[%clk 0:03:02]} 12. c3 {[%clk 0:02:56]}  Qc7 {[%clk 0:03:02]} 13. Bf1 {[%clk 0:02:54]}  O-O-O {[%clk 0:03:02]} 14. Qf3 {[%clk 0:02:41]}  Bd6 {[%clk 0:02:58]} 15. g3 {[%clk 0:02:41]}  Kb8 {[%clk 0:02:53]} 16. Bg5 {[%clk 0:02:39]}  h5 {[%clk 0:02:47]} 17. Rad1 {[%clk 0:02:37]}  h4 {[%clk 0:02:45]} 18. Bg2 {[%clk 0:02:13]}  hxg3 {[%clk 0:02:41]} 19. hxg3 {[%clk 0:02:14]}  e5 {[%clk 0:02:36]} 20. Nf5 {[%clk 0:02:05]}  Bc6 {[%clk 0:02:36]} 21. Qe2 {[%clk 0:01:53]}  Bxg2 {[%clk 0:02:16]} 22. Kxg2 {[%clk 0:01:53]}  Qc6+ {[%clk 0:02:12]} 23. f3 {[%clk 0:01:53]}  Bc7 {[%clk 0:01:58]} 24. Rxd8+ {[%clk 0:01:51]}  Rxd8 {[%clk 0:01:56]} 25. Rd1 {[%clk 0:01:51]}  Rxd1 {[%clk 0:01:46]} 26. Qxd1 {[%clk 0:01:52]}  Nd5 {[%clk 0:01:46]} 27. Nxg7 {[%clk 0:01:39]}  f6 {[%clk 0:01:45]} 28. Bc1 {[%clk 0:01:38]}  Qd7 {[%clk 0:01:43]} 29. Nf5 {[%clk 0:01:30]}  Nf4+ {[%clk 0:01:39]} 0-1